{"text_format":"1","workbook":"xlsx","n_sheets":3,"sheets":["Tabelle1","Tabelle2","Tabelle3"],"not_rendered":{"charts":1,"images":6,"macros":1,"external_links":0,"defined_names":1,"comments":0,"pivot_tables":0},"unopened":[],"bounds":{"document_bytes":16777216,"sheet_cells":100000,"rows_first":2000,"rows_last":500,"rows_between":2000,"halvings":0,"cell_chars":16384,"cell_head_chars":4096},"cells_cut":0,"cells_raw":0,"read":"whole","date_system":"1900"}

{"sheet":"Tabelle1","index":0,"n_rows":65,"n_cols":12,"rows_kept":65,"cut":false,"hidden":false,"merged":[[58,0,58,2],[64,0,64,2],[46,1,46,9],[47,1,47,9],[55,0,55,2],[52,0,52,2],[49,8,49,9],[61,0,61,2]]}
["Kostenvergleich Kleben vs. Heften für Faltkarton"]
[]
[" = einzugebende Werte"]
[]
["Anzahl an Kartons pro Tag"]
[]
["Preis pro Rolle Klebeband"]
["Länge der Klebebandrolle"]
["Preis pro 1.000 mm",{"$f":"B7/B8","v":{"$error":"#DIV/0!"}}]
[]
["Preis pro 1.000  Klammern\nbei untersch. Klammern -> Mischkalkulation"]
[]
[null,"L (max. 800)","B (max. 800)","H"]
["Kartonmaße in mm"]
[]
["durchschnittliches Gewicht"]
[]
["Benötigte Menge Klebeband",{"$f":"B14*2+C14*4+12*10+(B16*20*(B14+C14)/2/100)","v":120},"mm"]
[]
["Benötigte Klammern pro Karton",{"$f":"IF(AND(B16<16,B14<610),8,IF(B16<21,12,14))","v":8},"Stück"]
[]
[]
[]
["Kosten pro Karton mit Klebeband",{"$f":"B18*B9/1000","v":{"$error":"#DIV/0!"}}]
[]
["Kosten pro Karton mit Klammern",{"$f":"B20*B11/1000","v":0}]
[]
[]
["Anschaffungskosten Klebeband-Gerät"]
["Anschaffungskosten Heftgerät"]
[]
[]
[]
[]
["Anzahl Kartons","Kosten Heften","Kosten Kleben"]
[{"$f":"B5","v":0},{"$f":"$B$30+($B$26*A36)","v":0},{"$f":"$B$29+($B$24*A36)","v":{"$error":"#DIV/0!"}}]
[{"$f":"B5*5","v":0},0,{"$error":"#DIV/0!"}]
[{"$f":"B5*5*4.3","v":0},0,{"$error":"#DIV/0!"}]
[{"$f":"B5*5*4.3*6","v":0},0,{"$error":"#DIV/0!"}]
[{"$f":"B5*5*4.3*12","v":0},0,{"$error":"#DIV/0!"}]
[{"$f":"B5*5*4.3*12*2","v":0},0,{"$error":"#DIV/0!"}]
[{"$f":"B5*5*4.3*12*3","v":0},0,{"$error":"#DIV/0!"}]
[{"$f":"B5*5*4.3*12*4","v":0},0,{"$error":"#DIV/0!"}]
[{"$f":"B5*5*4.3*12*5","v":0},0,{"$error":"#DIV/0!"}]
[]
[]
["Annahmen:","Zum Klebeband: Breite mind. 50 mm, Stärke 65 µ, Verschluss des Kartons über Längsseite (ab Übergröße wird entlang der Breite zusätzlich verklebt bzw. doppelt verklebt. Beim Heften werden zusätzliche Klammern gesetzt)"]
[null,"zeitlicher Aufwand wird außer Acht gelassen; Aufwand ist aber bei beiden Varianten in etwa gleich; umso größer jedoch der Karton wird, desto ergonomischer und einfacher wird für den Anwender der Heftverschluss.\nKlebebandverbrauch wird \"fließend\" gerechnet; beim Heften wird ab 16 kg bzw. 21 kg oder besonderer Länge sprunghaft durch zusätzliche Klammern verstärkt; Klebeband-Verbrauch und Anzahl der Klammern pro Karton wurden durch Praxis-Erhebungen unterlegt."]
[]
["Wie wichtig sind Ihnen diese zusätzlichen Anforderungen an den Kartonverschluss:",null,null,null,null,null,null,null,"empfohlener Verschluss"]
[]
["Unempfindlichkeit gegenüber Schmutz/Feuchtigkeit/Hitze/Kälte",null,null,null,null,null,null,null,{"$f":"IF(K52,\"Kleben\",\"\")","v":""},{"$f":"IF(L52,\"Heften\",\"\")","v":""},false,false]
["Auf schmutzigen oder feuchten Untergrund kann kein Klebeband seine volle Klebekraft annähernd entfalten; sind die Bedingungen in Ihrem Versandbereich stets optimal? Die meisten Klebebänder reagieren sehr empfindlich auf Temperaturschwankungen. Kennen Sie die Temperaturschwankungen in Paketzusteller-PKWs?"]
[]
["Unempfindlichkeit gegenüber längeren Lagerungszeiten",null,null,null,null,null,null,null,{"$f":"IF(K55,\"Kleben\",\"\")","v":""},{"$f":"IF(L55,\"Heften\",\"\")","v":""},false,false]
["Die meisten Klebebänder verlieren nach einigen Monaten Lagerzeit einen beachtlichen Teil ihrer Klebekraft."]
[]
["Abfallvolumen und Recycelbarkeit",null,null,null,null,null,null,null,{"$f":"IF(K58,\"Kleben\",\"\")","v":""},{"$f":"IF(L58,\"Heften\",\"\")","v":""},false,false]
["Das Abfallvolumen von Klebeband ist ca. 40-mal höher als beim Heften; der Recyclingprozess der Heftklammer ist umweltverträglich und unendlich wiederholbar."]
[]
["Kostentransparenz / versteckte Kosten",null,null,null,null,null,null,null,{"$f":"IF(K61,\"Kleben\",\"\")","v":""},{"$f":"IF(L61,\"Heften\",\"\")","v":""},false,false]
["Die Anzahl der benötigten Klammern lässt sich optisch eindeutig überprüfen und als Handlungsvorgabe weitergeben. Die Anzahl von gelieferten Klammern ist kontrollierbar. Bei Klebeband wird durch Doppel- und Dreifachverklebung eine Verbrauchskontrolle schwierig. Die tatsächlich aufgerollten Meter pro Rolle sind mit der Vorgabe kaum abzugleichen."]
[]
["Manipulierbarkeit / Verschluss-Festigkeit",null,null,null,null,null,null,null,{"$f":"IF(K64,\"Kleben\",\"\")","v":""},{"$f":"IF(L64,\"Heften\",\"\")","v":""},false,false]
["Ein durchgehender Heftverschluss stellt einen Plombierungseffekt dar; Die Manipulation wird sichtbar, da die Klammer nicht wieder in die Ursprungsform zurückgestellt werden kann.",null,null,null,null,"Welche Vorteile sind für Sie entscheidend?"]

{"sheet":"Tabelle2","index":1,"n_rows":6,"n_cols":1,"rows_kept":6,"cut":false,"hidden":false,"merged":[]}
[]
[{"$f":"Tabelle1!B14*2+4*10+(Tabelle1!B16*20*Tabelle1!B14/100)","v":40}]
[{"$f":"IF(AND(Tabelle1!B14<700,Tabelle1!C14<600),Tabelle1!B14*2+100*4,Tabelle1!B14*2+Tabelle1!C14*4+100*12)","v":400}]
[{"$f":"IF(Tabelle1!B16<5.1,Tabelle1!B14*2+4*10,IF(Tabelle1!B16<10,Tabelle1!B14*4+4*10,Tabelle1!B14*4+Tabelle1!C14*4+12*10))","v":40}]
[]
[{"$f":"IF(AND(Tabelle1!B14<700,Tabelle1!C14<600,Tabelle1!B16<16),8,14)","v":8}]

{"sheet":"Tabelle3","index":2,"n_rows":0,"n_cols":0,"rows_kept":0,"cut":false,"hidden":false,"merged":[]}